bitfinex-derivatives/quotes_ETHF0:USTF0_20241231
["timestamp","ask_amount","ask_price","bid_price","bid_amount"]
[1735609413720,2.35611934,3338.9,3338.5,43.7703562]
[1735609414019,2.35611934,3338.9,3338.5,41.4861]
[1735609414020,0.30005,3338.6,3338.5,41.4861]
[1735609414317,0.30005,3338.6,3338.5,40.8]
[1735609415820,4.31471934,3338.8,3338.2,1.264]
[1735609416022,0.30007,3338.4,3338.2,1.264]
[1735609416411,0.30007,3338.4,3338.2,42.064]
[1735609416811,0.93217,3338.3,3338.2,1.264]
[1735609418021,0.30007,3338.3,3338.2,1.264]
[1735609418426,0.30006,3338.5,3338.2,1.264]
[1735609418625,0.93215,3338.6,3338.2,1.264]
[1735609419119,2.35611934,3338.7,3338.3,40.8]
[1735609419424,2.35611934,3338.7,3338.4,0.30006]
[1735609419718,2.35611934,3338.7,3338.3,41.74717]
[1735609419924,2.35611934,3339.0,3338.7,0.30003]
[1735609420119,2.35611934,3339.0,3338.8,1.2779]
[1735609420320,2.35611934,3339.0,3338.3,41.74717]
[1735609420321,0.30002,3338.9,3338.3,41.74717]
[1735609420524,0.30004,3338.7,3338.4,1.2779]
[1735609420726,0.92522,3338.9,3338.4,1.2779]
[1735609421119,0.6252,3338.9,3338.5,2.5843062]
[1735609421620,2.35611934,3339.0,3338.7,0.30003]
[1735609422020,2.35611934,3339.0,3338.5,2.9033562]
[1735609422220,2.35611934,3339.0,3338.7,0.30003]
[1735609422426,0.6429,3339.2,3338.8,0.30003]
[1735609422923,0.94289,3339.2,3338.6,0.30004]
[1735609423124,0.94289,3339.2,3338.5,2.9033562]
[1735609423318,0.94289,3339.2,3338.7,0.30003]
[1735609423825,2.35611934,3339.3,3338.9,0.30002]
[1735609424025,2.35611934,3339.3,3338.8,2.2842562]
[1735609424026,2.35611934,3339.3,3339.0,1.57831]
[1735609424424,2.35611934,3339.3,3339.0,2.84231]
[1735609425329,2.35611934,3339.3,3339.0,2.5423]
[1735609425825,6.78981934,3339.5,3339.2,0.29999]
[1735609426429,6.78981934,3339.5,3339.1,0.3]
[1735609427031,6.78981934,3339.5,3339.2,0.29999]
[1735609427234,7.08978934,3339.5,3339.0,2.84231]
[1735609427429,7.08978934,3339.5,3339.1,0.3]
[1735609427831,6.78981934,3339.5,3339.0,2.5423]
[1735609428131,7.08978934,3339.5,3339.1,0.3]
[1735609428626,6.78981934,3339.5,3338.5,6.1111562]
[1735609428827,0.30001,3339.0,3338.6,2.79544]
[1735609429131,0.6089,3338.9,3338.7,0.30003]
[1735609429323,0.6089,3338.9,3338.6,2.4954]
[1735609429531,0.29998,3339.4,3339.0,0.30001]
[1735609429725,0.6089,3339.4,3339.0,0.30001]
[1735609430030,2.35611934,3339.3,3338.9,0.30002]
[1735609430531,2.35611934,3339.3,3338.6,2.4954]
[1735609430728,0.3,3339.2,3338.7,0.30003]
[1735609431433,0.9287,3339.1,3338.7,0.30003]
[1735609432120,0.6287,3339.1,3338.6,2.4954]
[1735609432321,2.35611934,3339.3,3339.1,0.3]
[1735609432930,2.35611934,3339.3,3339.2,0.29999]
[1735609433324,2.35611934,3339.3,3339.2,42.37509]
[1735609434122,0.6089,3339.4,3339.2,42.0751]
[1735609434322,0.6089,3339.4,3339.3,0.29998]
[1735609434729,0.6089,3339.4,3339.2,1.2751]
[1735609434923,0.6089,3339.4,3339.3,40.8]
[1735609435131,0.6089,3339.4,3339.3,41.09998]
[1735609438339,0.6089,3339.4,3339.3,0.29998]
[1735609438835,0.6089,3339.4,3339.3,41.09998]
[1735609442140,3.8167,3339.4,3339.3,41.09998]
[1735609443337,3.2078,3339.8,3339.3,40.8]
[1735609443640,4.4478,3339.8,3339.4,0.29997]
[1735609443840,4.4478,3339.8,3339.4,1.56297]
[1735609446036,4.74774,3339.8,3339.4,1.263]
[1735609446342,4.4478,3339.8,3339.4,1.263]
[1735609446644,4.74774,3339.8,3339.4,1.56297]
[1735609447538,4.74774,3339.8,3339.7,0.29995]
[1735609447539,3.2078,3339.8,3339.7,0.29995]
[1735609447737,3.2078,3339.8,3339.4,1.263]
[1735609447942,0.6463,3339.7,3339.4,1.263]
[1735609448143,1.2983,3339.7,3339.6,0.29996]
[1735609448639,1.2983,3339.7,3339.4,3.5472562]
[1735609448845,1.2983,3339.7,3339.5,0.29996]
[1735609449041,0.644,3339.6,3339.5,0.29996]
[1735609451140,0.644,3339.6,3338.8,3.2078]
[1735609451346,0.3,3339.1,3338.8,3.2078]
[1735609451540,1.95142,3339.0,3338.8,3.2078]
[1735609451839,1.6514,3339.0,3338.9,40.8]
[1735609453642,4.8592,3339.0,3338.9,40.8]
[1735609455044,7.21531934,3339.0,3338.9,40.8]
[1735609456045,4.00751934,3339.0,3338.9,40.8]
[1735609456247,5.18192505,3339.0,3338.9,40.8]
[1735609457044,3.53052505,3339.0,3338.9,41.10002]
[1735609457550,3.31297475,3339.3,3338.9,40.8]
[1735609457751,3.31297475,3339.3,3339.0,0.30001]
[1735609458143,3.31297475,3339.3,3338.9,40.8]
[1735609458544,0.3,3339.2,3338.9,41.10001]
[1735609458745,0.5099,3339.1,3338.9,40.8]
[1735609459451,0.5099,3339.1,3338.9,41.10002]
[1735609459852,0.80991,3339.1,3338.9,40.8]
[1735609460149,0.4752,3339.3,3339.1,0.3]
[1735609460541,0.4752,3339.3,3339.0,0.4832]
[1735609460542,0.4752,3339.3,3339.0,0.78321]
[1735609462451,0.77519,3339.3,3339.0,0.4832]
[1735609463853,0.77519,3339.3,3339.0,0.78321]
[1735609464047,0.4752,3339.3,3339.0,0.78321]
[1735609464854,0.77519,3339.3,3339.0,7.06817145]
[1735609465153,3.2078,3339.1,3339.0,7.06817145]
[1735609465550,0.77519,3339.3,3339.0,7.06817145]
[1735609465749,4.30571505,3339.3,3339.1,40.8]
[1735609466142,4.00572505,3339.3,3339.1,40.8]
[1735609466349,0.29999,3339.2,3339.1,40.8]
[1735609467251,0.30001,3339.0,3338.7,7.06817145]
[1735609467447,0.30003,3338.8,3338.7,7.06817145]
[1735609467954,0.81173,3338.8,3338.7,7.06817145]
[1735609468650,0.30007,3338.4,3338.1,7.06817145]
[1735609468947,4.1936,3338.3,3338.1,7.06817145]
[1735609469152,4.7053,3338.3,3338.1,7.06817145]
[1735609469950,4.7053,3338.3,3337.9,49.17567145]
[1735609470158,4.7053,3338.3,3337.9,47.86817145]
[1735609470453,0.30009,3338.2,3337.9,47.86817145]
[1735609471356,4.7053,3338.3,3337.9,40.8]
[1735609471556,5.00538,3338.3,3337.9,41.10011]
[1735609472751,2.35823021,3338.2,3337.9,41.10011]
[1735609472949,2.65832021,3338.2,3337.9,40.8]
[1735609473957,0.30009,3338.2,3337.9,40.8]
[1735609474457,0.30009,3338.2,3337.9,41.10011]
[1735609474951,4.7053,3338.3,3337.9,40.8]
[1735609475152,3.7195,3338.3,3338.1,0.30008]
[1735609475455,3.7195,3338.3,3338.2,0.77408]
[1735609475855,3.7195,3338.3,3338.2,0.474]
[1735609476852,2.35823021,3338.5,3338.4,0.30006]
[1735609477051,3.53734532,3338.7,3338.4,0.30006]
[1735609477052,1.75070958,3338.7,3338.6,0.30005]
[1735609477353,4.62451396,3338.9,3338.8,0.30003]
[1735609477648,4.62451396,3338.9,3338.8,5.7920862]
[1735609478245,4.62451396,3338.9,3338.8,46.5920862]
[1735609478447,1.29547,3339.5,3338.8,46.2920562]
[1735609478757,1.29547,3339.5,3339.2,0.29999]
[1735609478956,0.9955,3339.5,3339.2,0.29999]
[1735609480857,0.9955,3339.5,3339.1,0.3]
[1735609481157,0.9955,3339.5,3338.9,0.486]
[1735609481356,0.9955,3339.5,3339.2,0.29999]
[1735609481558,0.9955,3339.5,3338.9,0.486]
[1735609481856,0.9955,3339.5,3339.1,0.3]
[1735609482456,3.2078,3339.3,3339.0,0.3]
[1735609482758,0.3,3339.1,3339.0,1.263]
[1735609483663,0.30002,3338.9,3338.8,7.06817145]
[1735609483860,3.50782,3338.9,3338.4,8.63123145]
[1735609484058,0.4898,3338.8,3338.4,8.63123145]
[1735609484262,0.4898,3338.8,3338.4,49.43123145]
[1735609485170,0.4898,3338.8,3338.4,42.36306]
[1735609486064,0.78983,3338.8,3338.4,42.36306]
[1735609486760,0.30005,3338.6,3338.4,40.8]
[1735609488158,3.2078,3338.5,3338.4,40.8]
[1735609488359,3.50786,3338.5,3338.4,40.8]
[1735609488555,3.2078,3338.5,3338.4,40.8]
[1735609488758,0.30005,3338.6,3338.4,40.8]
[1735609489266,0.9652,3338.8,3338.4,40.8]
[1735609489468,1.26523,3338.8,3338.4,41.10006]
[1735609489662,1.26523,3338.8,3338.4,40.8]
[1735609489663,0.30004,3338.7,3338.4,40.8]
[1735609490554,0.9652,3338.8,3338.4,40.8]
[1735609490555,1.26523,3338.8,3338.4,40.8]
[1735609492570,1.26523,3338.8,3338.4,41.10006]
[1735609492962,1.26523,3338.8,3338.4,40.8]
[1735609494266,1.26523,3338.8,3338.4,41.10006]
[1735609494666,0.30006,3338.5,3338.4,40.8]
[1735609494864,0.30006,3338.5,3338.0,7.06817145]
[1735609494865,0.30006,3338.4,3338.0,7.06817145]
[1735609495167,0.30008,3338.3,3338.1,7.06817145]
[1735609495976,0.4656,3338.2,3338.1,7.06817145]
[1735609496968,0.4656,3338.2,3338.0,40.8]
[1735609497363,0.4928,3338.4,3338.1,0.30009]
[1735609497571,3.2078,3338.9,3338.2,2.2842562]
[1735609497757,3.2078,3338.9,3338.3,1.263]
[1735609497961,3.50782,3338.9,3338.5,0.30005]
[1735609498673,5.11881396,3339.1,3338.8,2.2842562]
[1735609499171,0.4943,3339.1,3338.9,0.30001]
[1735609499557,0.4607,3339.2,3338.8,2.2842562]
[1735609499758,7.83231396,3339.6,3339.1,2.2842562]
[1735609499966,7.83231396,3339.6,3339.5,0.29997]
[1735609500372,3.2078,3339.6,3339.5,0.29997]
[1735609500665,3.2078,3339.6,3339.5,40.8]
[1735609501758,3.50776,3339.6,3339.5,40.8]
[1735609502163,3.50776,3339.6,3339.2,1.263]
[1735609502358,0.458,3339.5,3339.2,1.263]
[1735609502772,0.458,3339.5,3339.3,40.8]
[1735609503568,0.29997,3339.4,3339.3,40.8]
[1735609503873,0.75797,3339.5,3339.2,1.263]
[1735609504365,0.75797,3339.5,3339.2,42.063]
[1735609504573,0.29998,3339.4,3339.2,42.063]
[1735609505067,0.4777,3339.3,3339.2,42.063]
[1735609505868,0.4777,3339.3,3339.2,1.263]
[1735609507067,3.50776,3339.6,3339.2,1.56299]
[1735609507267,3.2078,3339.6,3339.2,1.56299]
[1735609507676,3.50776,3339.6,3339.2,1.263]
[1735609509967,3.2078,3339.6,3339.2,1.263]
[1735609510173,3.2078,3339.6,3339.2,1.56299]
[1735609510677,0.29997,3339.5,3339.2,1.263]
[1735609510971,0.4547,3339.4,3339.2,1.263]
[1735609511170,0.9278,3339.4,3339.2,1.263]
[1735609511573,1.22778,3339.4,3339.2,1.263]
[1735609511967,0.9278,3339.4,3339.2,1.263]
[1735609512372,0.9278,3339.4,3339.0,41.10001]
[1735609512774,0.9278,3339.4,3339.1,0.3]
[1735609512976,0.9278,3339.4,3339.0,40.8]
[1735609513275,0.9278,3339.4,3339.1,0.3]
[1735609514469,0.9278,3339.4,3339.0,40.8]
[1735609514674,0.3,3339.1,3339.0,40.8]
[1735609514873,0.9278,3339.4,3339.0,40.8]
[1735609515078,0.3,3339.2,3339.0,40.8]
[1735609515874,0.9278,3339.4,3339.0,40.8]
[1735609516186,0.30003,3338.8,3338.7,7.06817145]
[1735609516479,0.30003,3338.8,3338.6,1.262]
[1735609516680,0.30003,3338.8,3338.7,40.8]
[1735609517784,0.30006,3338.5,3338.4,3.2078]
[1735609517978,3.2078,3338.6,3338.2,7.06817145]
[1735609518173,0.30007,3338.3,3338.2,7.06817145]
[1735609518376,0.30007,3338.3,3338.2,47.86817145]
[1735609518683,0.30007,3338.3,3338.2,7.06817145]
[1735609518870,3.2078,3338.6,3338.2,7.06817145]
[1735609519078,3.2078,3338.6,3338.0,40.8]
[1735609519079,0.30007,3338.4,3338.0,40.8]
[1735609520278,0.30007,3338.4,3338.0,41.1001]
[1735609521178,3.2078,3338.6,3338.2,0.30008]
[1735609521677,3.2078,3338.6,3338.3,0.30007]
[1735609522380,3.2078,3338.6,3338.5,0.30005]
[1735609522686,5.06681396,3339.1,3338.8,0.30002]
[1735609522879,5.06681396,3339.1,3338.7,1.262]
[1735609523087,5.06681396,3339.1,3338.9,41.10002]
[1735609523284,0.4423,3339.1,3338.9,41.10002]
[1735609523486,3.661,3339.2,3338.9,41.10002]
[1735609523687,3.661,3339.2,3338.9,40.8]
[1735609524576,0.30001,3339.0,3338.9,40.8]
[1735609524775,10.9452562,3339.2,3338.5,7.06817145]
[1735609524986,0.30005,3338.6,3338.5,7.06817145]
[1735609525681,0.30008,3338.2,3338.1,1.262]
[1735609525980,3.2078,3338.4,3338.1,42.062]
[1735609526472,0.30008,3338.3,3338.1,42.062]
[1735609526677,0.4532,3338.2,3338.1,42.062]
[1735609528279,0.4532,3338.2,3338.1,42.36209]
[1735609528475,0.4532,3338.2,3338.1,42.062]
[1735609528675,0.75328,3338.2,3338.1,42.062]
[1735609528882,0.4532,3338.2,3338.1,42.062]
[1735609529483,3.2078,3338.4,3338.1,42.36208]
[1735609529984,3.2078,3338.8,3338.5,0.30005]
[1735609530203,3.2078,3338.8,3338.2,2.2842562]
[1735609530204,0.443,3339.0,3338.6,0.30004]
[1735609531088,5.05811396,3339.1,3338.5,2.2842562]
[1735609531289,4.62451396,3339.1,3339.0,0.30001]
[1735609531589,0.4535,3339.3,3339.0,0.30001]
[1735609533787,0.75349,3339.3,3338.9,1.7273]
[1735609533990,0.75349,3339.3,3339.0,0.30001]
[1735609533991,0.4535,3339.3,3339.0,0.30001]
[1735609534181,3.2078,3339.4,3338.9,1.7273]
[1735609534428,3.2078,3339.4,3339.3,0.29998]
[1735609535991,3.2078,3339.4,3338.9,1.7273]
[1735609536194,3.50778,3339.4,3338.9,2.02731]
[1735609536487,0.29998,3339.3,3338.9,6.70913831]
[1735609536688,3.2078,3339.4,3338.9,4.68182831]
[1735609536893,3.2078,3339.4,3339.0,0.30001]
[1735609537089,3.50777,3339.4,3339.0,0.30001]
[1735609537293,3.50777,3339.4,3338.9,4.68182831]
[1735609537593,3.50777,3339.4,3338.9,4.98183831]
[1735609537891,3.50777,3339.4,3338.9,0.30001]
[1735609538693,0.29999,3339.3,3338.9,0.30001]
[1735609538895,3.2078,3339.4,3338.9,0.30001]
[1735609539088,3.50778,3339.4,3338.9,0.30001]
[1735609539395,0.29998,3339.3,3338.9,0.30001]
[1735609540093,3.2078,3339.4,3338.8,8.66198451]
[1735609540491,0.4333,3339.8,3339.1,2.2842562]
[1735609540492,0.73324,3339.8,3339.1,2.2842562]
[1735609540693,0.73324,3339.8,3339.4,0.29997]
[1735609541387,0.29995,3339.7,3339.4,0.29997]
[1735609541686,0.29995,3339.7,3339.2,4.68182831]
[1735609541891,0.29996,3339.6,3339.2,4.98181831]
[1735609542397,0.4333,3339.8,3339.2,4.68182831]
[1735609542692,0.29995,3339.7,3339.3,0.29998]
[1735609543693,3.6817,3339.9,3339.1,6.96608451]
[1735609543694,3.2078,3339.9,3339.6,0.29995]
[1735609544094,3.2078,3339.9,3339.7,0.29994]
[1735609544505,3.2078,3339.9,3339.6,1.261]
[1735609544691,3.2078,3339.9,3339.6,1.56095]
[1735609544891,3.2078,3339.9,3339.7,0.29994]
[1735609545493,3.2078,3339.9,3339.8,40.8]
[1735609546494,3.2078,3339.9,3339.8,41.09994]
[1735609547897,3.2078,3339.9,3339.7,2.2842562]
[1735609548103,0.4848,3339.8,3339.7,2.5842062]
[1735609548402,0.4848,3339.8,3339.7,43.3842062]
[1735609548700,0.4848,3339.8,3339.7,2.2842562]
[1735609548897,0.4848,3339.8,3339.6,5.94282831]
[1735609549098,0.29995,3339.7,3339.6,5.94282831]
[1735609549502,0.29995,3339.7,3339.6,1.261]
[1735609551197,0.4848,3339.8,3339.4,43.3842262]
[1735609551502,0.29996,3339.6,3339.4,44.6452262]
[1735609551691,0.4395,3339.7,3339.4,42.061]
[1735609551896,3.50777,3339.5,3339.4,42.061]
[1735609552097,3.50777,3339.5,3339.4,1.261]
[1735609552298,0.29998,3339.3,3339.2,4.68182831]
[1735609552502,0.29998,3339.3,3339.2,45.48182831]
[1735609553204,0.4822,3339.4,3339.2,45.78181831]
[1735609553611,0.4822,3339.4,3339.2,40.8]
[1735609553906,0.78218,3339.4,3339.2,40.8]
[1735609554309,0.4822,3339.4,3339.2,40.8]
[1735609560718,0.78218,3339.4,3339.2,40.8]
[1735609561018,0.4822,3339.4,3339.2,40.8]
[1735609561413,0.4822,3339.4,3339.2,41.09999]
[1735609561616,0.73946,3339.7,3339.2,41.09999]
[1735609561914,0.76416,3339.6,3339.2,41.09999]
[1735609562314,0.4395,3339.7,3339.2,40.8]
[1735609562520,0.4395,3339.7,3339.3,0.29998]
[1735609562816,0.73945,3339.7,3339.3,0.29998]
[1735609563023,0.4395,3339.7,3339.3,0.29998]
[1735609563521,0.73945,3339.7,3339.2,41.09999]
[1735609563721,0.73945,3339.7,3339.2,40.8]
[1735609563913,3.50777,3339.5,3339.2,40.8]
[1735609564320,3.2078,3339.5,3339.1,4.68182831]
[1735609564512,0.29999,3339.2,3339.1,4.68182831]
[1735609565816,0.29999,3339.2,3339.0,1.261]
[1735609566024,1.3782,3339.1,3339.0,1.261]
[1735609566413,4.586,3339.1,3338.7,7.88962831]
[1735609566721,0.30003,3338.8,3338.7,7.88962831]
[1735609567123,0.30003,3338.8,3338.7,3.2078]
[1735609567323,0.30004,3338.7,3338.6,4.68182831]
[1735609567822,3.50784,3338.7,3338.6,0.19322831]
[1735609568024,0.30005,3338.5,3338.4,7.06817145]
[1735609568525,0.30005,3338.5,3338.0,7.06817145]
[1735609568822,3.2078,3338.1,3338.0,7.06817145]
[1735609569321,3.2078,3338.8,3338.0,7.06817145]
[1735609569523,3.2078,3338.8,3338.4,0.30006]
[1735609569725,3.2078,3338.8,3338.5,0.0913]
[1735609570418,3.2078,3338.8,3338.7,0.30004]
[1735609570624,3.2078,3338.8,3338.7,1.56104]
[1735609570823,3.2078,3338.8,3338.7,42.36104]
[1735609571212,3.2078,3338.8,3338.7,42.80384]
[1735609572123,3.2078,3339.5,3338.7,47.5038]
[1735609572323,3.2078,3339.5,3339.2,2.2842562]
[1735609572518,3.2078,3339.5,3339.3,1.3455]
[1735609572724,3.2078,3339.5,3339.3,1.64548]
[1735609572920,3.50777,3339.5,3339.3,1.3455]
[1735609573617,3.2078,3339.5,3339.3,0.8828]
[1735609574325,0.29997,3339.4,3339.3,0.8828]
[1735609574826,0.75607,3339.4,3339.3,0.8828]
[1735609575215,0.4561,3339.4,3339.3,0.8828]
[1735609576227,3.50777,3339.5,3339.3,0.8828]
[1735609577619,0.29997,3339.4,3339.3,0.8828]
[1735609577819,0.29997,3339.4,3339.3,0.44]
[1735609578023,0.78077,3339.4,3339.3,0.44]
[1735609581024,0.4808,3339.4,3339.3,0.44]
[1735609581321,0.78077,3339.4,3339.3,0.44]
[1735609581523,0.78077,3339.4,3339.0,0.4448]
[1735609581721,0.4808,3339.4,3339.0,0.4448]
[1735609581925,0.4808,3339.4,3339.1,0.3]
[1735609582735,3.2078,3339.5,3339.2,2.2842562]
[1735609582926,3.2078,3339.5,3339.3,0.29998]
[1735609583323,3.53013121,3339.7,3339.4,0.4859]
[1735609583728,3.83008121,3339.7,3339.4,0.4859]
[1735609584229,0.29995,3339.7,3339.4,0.4859]
[1735609584724,0.29996,3339.6,3339.2,7.36816145]
[1735609584924,0.4561,3339.8,3339.6,0.29995]
[1735609585124,0.4561,3339.8,3339.7,0.4859]
[1735609585523,0.75604,3339.8,3339.7,0.4859]
[1735609586619,0.75604,3339.8,3339.7,41.2859]
[1735609586824,0.75604,3339.8,3339.7,40.8]
[1735609587625,0.29995,3339.7,3339.5,3.2078]
[1735609588027,3.2078,3339.7,3339.3,7.06817145]
[1735609588332,0.29997,3339.4,3339.3,7.06817145]
[1735609588729,3.2078,3339.7,3339.0,7.06817145]
[1735609588928,4.43609,3339.3,3339.0,7.06817145]
[1735609589128,0.7578,3339.2,3339.0,7.06817145]
[1735609590332,0.4578,3339.2,3338.8,40.8]
[1735609590536,0.3,3339.1,3338.8,40.8]
[1735609591236,0.7578,3339.2,3338.8,41.10003]
[1735609591537,0.3,3339.1,3338.8,41.10003]
[1735609591836,0.4578,3339.2,3338.8,40.8]
[1735609592036,0.30001,3339.0,3338.8,40.8]
[1735609592230,0.30001,3339.0,3338.7,2.03983]
[1735609592534,0.4578,3339.2,3338.7,2.03983]
[1735609592535,0.30001,3339.1,3338.7,2.03983]
[1735609592734,0.30001,3339.0,3338.7,42.5398]
[1735609592935,0.4578,3339.2,3338.7,42.5398]
[1735609593134,0.30001,3339.1,3338.7,42.83984]
[1735609593736,0.30001,3339.1,3338.7,42.5388]
[1735609594033,0.3,3339.2,3338.7,42.83883]
[1735609594335,0.3,3339.1,3338.7,42.83883]
[1735609594533,0.4879,3339.2,3338.7,42.5388]
[1735609594735,0.30001,3339.0,3338.7,41.2788]
[1735609595328,0.4879,3339.2,3338.7,40.8]
[1735609595533,3.50783,3338.8,3338.4,7.06817145]
[1735609595733,0.30005,3338.5,3338.4,7.06817145]
[1735609596031,0.30006,3338.4,3338.3,7.06817145]
[1735609596339,3.50786,3338.4,3338.3,7.06817145]
[1735609597741,5.86340986,3338.4,3338.1,9.4242286]
[1735609597934,5.86340986,3338.4,3337.8,3.8443762]
[1735609597935,5.86340986,3338.4,3337.9,0.30011]
[1735609598338,5.86340986,3338.4,3338.0,0.4626]
[1735609599233,3.2078,3338.4,3337.8,1.26]
[1735609599531,2.35554986,3338.6,3337.7,1.26]
[1735609599532,3.2078,3337.9,3337.7,1.26]
[1735609599733,0.9254,3337.8,3337.7,1.26]
[1735609602247,1.22552,3337.8,3337.7,42.06]
[1735609602940,1.22552,3337.8,3337.7,40.8]
[1735609603942,0.9254,3337.8,3337.7,40.8]
[1735609604440,3.50791,3337.9,3337.7,40.8]
[1735609605143,3.2078,3337.9,3337.7,40.8]
[1735609605343,3.2078,3337.9,3337.8,0.4622]
[1735609605642,3.50791,3337.9,3337.8,0.4622]
[1735609605839,3.50791,3337.9,3337.7,40.8]
[1735609605840,0.30012,3337.8,3337.7,40.8]
[1735609608541,3.2078,3337.9,3337.7,40.8]
[1735609608941,0.30012,3337.8,3337.7,40.8]
[1735609610843,3.50791,3337.9,3337.7,40.8]
[1735609611939,3.50791,3337.9,3337.8,0.4363]
[1735609615145,0.30012,3337.8,3337.7,40.8]
[1735609616640,0.30014,3337.6,3337.5,1.261]
[1735609617846,0.30013,3337.7,3337.5,1.261]
[1735609618947,3.2078,3337.9,3337.5,1.261]
[1735609618948,0.30013,3337.8,3337.5,1.261]
[1735609619249,3.2078,3337.9,3337.5,1.56114]
[1735609619441,3.2078,3337.9,3337.6,0.30014]
[1735609620349,3.2078,3337.9,3337.5,1.56114]
[1735609620740,3.2078,3337.9,3337.5,1.261]
[1735609621244,0.30013,3337.7,3337.5,1.261]
[1735609621746,3.2078,3337.9,3337.5,1.261]
[1735609622051,0.30014,3337.6,3337.5,1.261]
[1735609623749,3.2078,3337.9,3337.5,1.261]
[1735609624148,3.2078,3337.9,3337.6,0.4427]
[1735609624452,3.2078,3337.9,3337.6,0.74283]
[1735609624646,3.2078,3337.9,3337.8,2.5843762]
[1735609624953,2.4597,3337.9,3337.8,2.5843762]
[1735609625345,1.7676,3337.9,3337.8,43.3843762]
[1735609625542,2.35554986,3338.3,3337.8,43.0842562]
[1735609625744,3.6465,3338.9,3338.6,0.30004]
[1735609625946,3.50782,3338.9,3338.5,3.8443062]
[1735609626148,3.50782,3338.9,3338.6,0.4519]
[1735609626343,3.2078,3338.9,3338.7,0.30003]
[1735609626547,2.81984986,3339.2,3338.7,0.30003]
[1735609626754,0.3,3339.1,3338.7,0.30003]
[1735609626945,0.3,3339.1,3338.6,0.75194]
[1735609627446,0.3,3339.1,3338.7,0.30003]
[1735609627646,0.4822,3339.3,3338.6,0.4519]
[1735609627846,0.4822,3339.3,3338.9,0.30001]
[1735609628151,0.4822,3339.3,3338.6,0.4519]
[1735609628454,0.3,3339.2,3338.8,0.30002]
[1735609628757,0.3,3339.2,3338.9,1.26]
[1735609629462,0.78219,3339.3,3338.9,1.56002]
[1735609629649,3.2078,3339.4,3339.1,0.3]
[1735609630152,3.50777,3339.4,3339.0,0.30001]
[1735609630350,0.29999,3339.3,3338.9,1.56001]
[1735609630555,0.3,3339.2,3338.9,1.26]
[1735609630950,0.29999,3339.3,3338.9,1.56002]
[1735609631152,3.2078,3339.4,3339.1,0.3]
[1735609631659,3.2078,3339.4,3338.9,42.06]
[1735609632146,0.29999,3339.3,3338.9,42.06]
[1735609632346,0.29999,3339.3,3338.9,42.36002]
[1735609633657,3.2078,3339.4,3339.0,0.3]
[1735609633849,0.29997,3339.5,3339.0,3.50781]
[1735609635053,0.29998,3339.4,3339.0,3.2078]
[1735609635959,0.4643,3339.6,3339.0,3.2078]
[1735609636456,0.29997,3339.5,3339.0,3.2078]
[1735609637658,0.29998,3339.4,3339.0,3.2078]
[1735609638155,0.4643,3339.6,3339.0,4.4678]
[1735609638655,0.4643,3339.6,3339.0,1.26]
[1735609639158,0.29998,3339.4,3339.0,1.26]
[1735609639860,0.4643,3339.6,3339.0,1.26]
[1735609640060,0.3,3339.1,3339.0,1.26]
[1735609640262,3.2078,3339.4,3339.0,1.26]
[1735609640753,0.29999,3339.3,3339.0,1.26]
[1735609641261,0.461,3339.2,3339.0,1.26]
[1735609644363,0.461,3339.2,3338.9,1.26]
[1735609644564,0.761,3339.2,3338.9,1.26]
[1735609647262,0.461,3339.2,3338.9,1.56002]
[1735609648066,0.461,3339.2,3339.0,0.30001]
[1735609648267,0.461,3339.2,3338.9,1.56001]
[1735609648766,0.76099,3339.2,3338.9,1.26]
[1735609649159,0.461,3339.2,3338.9,1.26]
[1735609649364,0.461,3339.2,3338.9,1.56002]
[1735609650668,0.461,3339.2,3338.9,1.26]
[1735609652267,0.76099,3339.2,3338.9,1.26]
[1735609653069,0.461,3339.2,3338.9,1.56001]
[1735609653570,0.461,3339.2,3339.0,1.259]
[1735609654472,0.461,3339.2,3339.0,1.55901]
[1735609654672,0.461,3339.2,3339.0,1.259]
[1735609656267,0.4643,3339.6,3339.1,3.5432562]
[1735609656474,0.4643,3339.6,3339.1,1.259]
[1735609656667,0.29998,3339.4,3339.1,1.259]
[1735609657073,0.4442,3339.3,3339.1,1.259]
[1735609658871,0.4442,3339.3,3339.1,1.559]
[1735609659073,0.4442,3339.3,3339.1,1.259]
[1735609659664,0.4442,3339.3,3339.1,3.5432562]
[1735609659868,0.4643,3339.6,3339.3,0.29998]
[1735609660167,0.4643,3339.6,3339.4,0.4572]
[1735609660564,0.4643,3339.6,3339.5,40.8]
[1735609663971,0.4643,3339.6,3339.3,1.259]
[1735609664378,0.4643,3339.6,3339.3,42.059]
[1735609665075,0.29997,3339.4,3339.3,1.259]
[1735609665377,0.4643,3339.6,3339.3,1.259]
[1735609665677,0.29997,3339.4,3339.3,1.259]
[1735609667272,0.4643,3339.6,3339.1,40.8]
[1735609667477,0.29999,3339.2,3339.1,40.8]
[1735609671881,0.29999,3339.2,3339.1,53.19494784]
[1735609672079,3.53523986,3339.3,3339.1,53.19494784]
[1735609672275,0.29999,3339.2,3339.1,53.19494784]
[1735609673184,0.29999,3339.2,3339.1,46.12677639]
[1735609673674,0.8797,3339.3,3339.1,46.12677639]
[1735609673877,1.17969,3339.3,3339.1,46.12677639]
[1735609674283,3.53523986,3339.3,3339.1,46.12677639]